Cogmind - Beta 17 @@@ ROGUE MODE // 2026.08.11 @ 03:13:04 Player: LandRaider Result: Destroyed by S-27 Virus with Autogun Performance ------------- Evolutions (4) 2000 Regions Visited (11) 2200 Robots Destroyed (70) 350 Value Destroyed (2937) 2937 Prototype IDs (14) 280 Alien Tech Used (0) 0 Bonus (1700) 1700 TOTAL SCORE: 9467 Bonus ------- Pacifist 200 Entered Garrisons 200 Used RIF Installer 500 Entered DSFs 500 Met Data Miner 300 Cogmind --------- Core Integrity 0/850 Matter 241/300 Energy 38/100 System Corruption 2% Temperature Cool (0) Movement Treading (160) Location -6/DSF Parts ------- > --- POWER (1) -------- (None) > --- PROPULSION (3) --- Improved Medium Treads Improved Medium Treads Improved Medium Treads > --- UTILITY (8) ------ Improved Cooling System Medium Storage Unit Improved Melee Analysis Suite Heavy Armor Plating Heavy Armor Plating Hacking Suite > --- WEAPON (3) ------- (None) > --- INVENTORY (10) --- Improved VSS Leg Improved VSS Leg Improved Heat Sink Advanced Heat Sink IFF Parser Advanced ECM Suite Relay Coupler [Swarmer] (30) Relay Coupler [Grunt] (28) Relay Coupler [Specialist] (19) Relay Coupler [Hunter] (18) Peak State ------------ > --- POWER ------------ Light Angular Momentum Engine > --- PROPULSION ------- Flexi-carbon Leg Flexi-carbon Leg Flexi-carbon Leg > --- UTILITY ---------- Medium Storage Unit Improved Terrain Scanner Improved Terrain Scan Processor Advanced Terrain Scan Processor Microactuators Makeshift Ablative Armor Hacking Suite Hacking Suite > --- WEAPON ----------- Thermic Laser Proton Cannon Powered Hammer > --- INVENTORY -------- Micro Nuclear Core Improved Titanium Leg Flexi-carbon Leg Gravmag System Improved Heat Sink Advanced ECM Suite Riot Gun Heavy Laser Thermoblaster Great Maul [Rating: 65] Favorites ----------- Power Light Nuclear Core Engine Light Angular Momentum Engine Power Core Light Nuclear Core Propulsion Flexi-carbon Leg Treads Light Treads Leg Flexi-carbon Leg Wheel Wheel Hover Unit Antigrav System Flight Unit Flight Unit Utility Hacking Suite Device Improved Terrain Scanner Storage Medium Storage Unit Processor Machine Analyzer Hackware Hacking Suite Protection Makeshift Ablative Armor Weapon Shock Rifle Energy Gun Shock Rifle Energy Cannon Proton Cannon Ballistic Gun Heavy Assault Rifle Launcher Thermoblaster Impact Weapon Powered Hammer Slashing Weapon Axe Build | -11 -10 -9 -8 -7 -7 -7 -6 -6 -6 -6 -6 ------- Run | Yrd Mat Mat Mat Fac Low Dat Pro Fac Gar Fac DSF Slots Evolved 8 | . . 2 2 2 . . . 2 . . . Power . | . . . . . . . . . . . . Propulsion 1 | . . . 1 . . . . . . . . Utility 6 | . . 2 1 1 . . . 2 . . . Weapon 1 | . . . . 1 . . . . . . . Parts Attached 116 | 6 1 16 18 10 . . 12 17 21 . 15 Power 12 | 1 . 1 3 1 . . 1 2 3 . . Engine 6 | 1 . 1 1 . . . . 1 2 . . Core 6 | . . . 2 1 . . 1 1 1 . . Reactor . | . . . . . . . . . . . . Propulsion 38 | 2 . 5 5 3 . . 2 7 5 . 9 Treads 11 | . . 2 3 . . . . 3 . . 3 Leg 20 | . . 2 2 . . . 2 4 5 . 5 Wheel 5 | 2 . . . 3 . . . . . . . Hover 1 | . . . . . . . . . . . 1 Flight 1 | . . 1 . . . . . . . . . Utility 35 | 1 . 5 3 3 . . 5 5 8 . 5 Device 15 | . . 2 1 2 . . 1 1 6 . 2 Storage 3 | 1 . 1 . . . . 1 . . . . Processor 5 | . . . 1 . . . . 2 1 . 1 Hackware 3 | . . 1 . . . . 1 1 . . . Protection 9 | . . 1 1 1 . . 2 1 1 . 2 Artifact . | . . . . . . . . . . . . Weapon 31 | 2 1 5 7 3 . . 4 3 5 . 1 Energy Gun 16 | 2 . 1 4 3 . . 1 2 2 . 1 Energy Cannon 1 | . . . . . . . . 1 . . . Ballistic Gun 8 | . 1 3 1 . . . . . 3 . . Ballistic Cannon . | . . . . . . . . . . . . Launcher 3 | . . 1 1 . . . 1 . . . . Special Weapon . | . . . . . . . . . . . . Impact Weapon 2 | . . . . . . . 2 . . . . Slashing Weapon 1 | . . . 1 . . . . . . . . Piercing Weapon . | . . . . . . . . . . . . Special Melee Weapon . | . . . . . . . . . . . . Unidentified Prototypes 1 | . . . 1 . . . . . . . . Parts Lost 62 | . . 5 13 2 . . 10 4 18 . 10 Power 10 | . . 1 3 . . . 1 1 3 . 1 Propulsion 12 | . . 1 3 1 . . 3 . 3 . 1 Utility 19 | . . . 2 1 . . 4 2 5 . 5 Weapon 21 | . . 3 5 . . . 2 1 7 . 3 Highest Loss Streak 10 | . . 3 4 2 . . 10 2 7 . 5 To Critical Strikes . | . . . . . . . . . . . . Average Backups 8 | 3 6 7 8 9 10 10 6 8 9 10 9 Power . | . 1 . . 1 1 1 . 1 . . . Propulsion 2 | 2 4 4 2 2 3 3 1 1 2 2 1 Utility 3 | . . . 3 3 4 4 3 2 4 7 7 Weapon 2 | . 1 1 1 2 2 2 1 3 2 1 . Tool/Special . | . . . . . . . . . . . . Unused Backups 11 | . . . 2 2 . . . . 1 . 6 Power 1 | . . . . 1 . . . . . . . Propulsion 4 | . . . . 1 . . . . 1 . 2 Utility 5 | . . . 1 . . . . . . . 4 Weapon 1 | . . . 1 . . . . . . . . Tool/Special . | . . . . . . . . . . . . Average Slot Usage (%) 89 | . 82 75 95 97 100 100 86 95 96 86 68 Engine 3 | . 14 10 3 . . . . 2 4 6 2 Core 3 | . . . 3 7 7 7 6 3 1 . . Treads 4 | . . 5 12 10 . . . 2 . . 1 Leg 11 | . . 4 10 . . . 11 17 18 20 14 Wheel 5 | . 28 7 3 11 23 23 10 . . . . Device 11 | . . 5 12 12 15 15 8 11 15 13 11 Storage 7 | . 14 11 9 7 7 7 7 6 6 6 6 Processor 6 | . . . 8 7 7 7 3 7 12 13 8 Hackware 8 | . . 4 9 7 7 7 4 12 13 6 6 Protection 6 | . . 5 5 7 7 7 8 9 3 6 5 Energy Gun 10 | . 25 3 8 23 23 23 17 8 9 . 1 Ballistic Gun 3 | . . 12 5 . . . . . 2 6 2 Launcher 1 | . . . 1 . . . . 2 1 6 1 Impact Weapon 1 | . . . . . . . 3 6 1 . 2 Peak Build Rating 65 | 6 6 17 31 34 34 34 46 65 65 51 60 Average Rating 37 | 4 5 10 24 31 34 34 33 57 58 51 44 On Entrance 30 | . 6 5 17 26 34 34 34 46 65 50 51 Avg Prop Armor Cover (%) 9 | . . 5 11 . . . . . 10 . 5 Naked Turns . | . . . . . . . . . . . . Heaviest Build 49 | 13 13 25 26 36 36 36 44 49 45 39 43 Greatest Support 90 | 26 26 40 60 60 30 30 45 84 60 55 90 Greatest Overweight (x) 14 | . . 2 1 2 1 1 3 1 14 . 1 Average Overweight (x) . | . . . . . 1 1 . . . . . Largest Inventory Capacity 10 | 8 8 10 10 10 10 10 10 10 10 10 10 Average Capacity 9 | 7 8 8 10 10 10 10 10 10 10 10 10 Most Carried 10 | 6 6 9 10 10 10 10 10 10 10 10 10 Average Carried 8 | 3 5 7 8 9 10 10 7 9 9 10 9 Final Capacity 10 | 8 8 10 10 10 10 10 10 10 10 10 10 Final Carried 10 | 6 5 9 10 10 10 10 9 10 10 10 10 Class Distribution -------------------- 28% | Mutant 20% | Hacker-Mutant 18% | Scavenger-Tank 18% | Scavenger-Mutant 10% | Hacker-Skirmisher 3% | Scavenger-Gunner Dominant Class ---------------- Mutant | -10/Materials Mutant | -9/Materials Scavenger-Mutant | -8/Materials Scavenger-Tank | -7/Factory Scavenger-Tank | -7/Lower Caves Scavenger-Tank | -7/Data Miner Mutant | -6/Proximity Caves Hacker-Mutant | -6/Factory Hacker-Skirmisher | -6/Garrison Scavenger-Mutant | -6/Factory Scavenger-Mutant | -6/DSF Resources | -11 -10 -9 -8 -7 -7 -7 -6 -6 -6 -6 -6 ----------- Run | Yrd Mat Mat Mat Fac Low Dat Pro Fac Gar Fac DSF Matter Collected 1919 | 201 . 456 399 50 . . 141 114 446 . 112 Remotely . | . . . . . . . . . . . . Salvage Created 2765 | . . 611 567 281 . . 217 256 694 . 139 Parts 129 | . . 35 28 15 . . 15 10 24 . 2 Haulers Intercepted . | . . . . . . . . . . . . Recyclers Shooed 1 | . . . 1 . . . . . . . . Parts Field Recycled . | . . . . . . . . . . . . Retrieved Matter . | . . . . . . . . . . . . Parts Self-Destructed 13 | . . . . . . . 13 . . . . Prevented 5 | . . . . . . . 5 . . . . Parts Restored . | . . . . . . . . . . . . Kills | -11 -10 -9 -8 -7 -7 -7 -6 -6 -6 -6 -6 ------- Run | Yrd Mat Mat Mat Fac Low Dat Pro Fac Gar Fac DSF Combat Hostiles Destroyed 58 | . . 14 14 3 . . 8 5 11 . 3 Melee 1 | . . . . . . . . . . . 1 Guns 38 | . . 12 7 3 . . 6 2 8 . . AOE 11 | . . 2 7 . . . . 2 . . . Classes Destroyed 12 | . . 5 3 1 . . . 1 2 . . Worker 5 | . . . 2 3 . . . . . . . Recycler 1 | . . . . 1 . . . . . . . Mechanic 1 | . . . 1 . . . . . . . . Operator 2 | . . 1 1 . . . . . . . . Watcher 3 | . . 2 1 . . . . . . . . Swarmer 11 | . . 3 . . . . 8 . . . . Grunt 28 | . . 9 7 3 . . . 3 6 . . Duelist 1 | . . . . . . . . . 1 . . Sentry 6 | . . 2 4 . . . . . . . . Specialist 5 | . . . . . . . . . 2 . 3 Hunter 6 | . . . 3 . . . . 1 2 . . Programmer 1 | . . . . . . . . 1 . . . Best Kill Streak 9 | . . 3 9 7 . . 3 2 3 . 2 Combat Bots Only 6 | . . 3 6 3 . . 3 2 3 . 2 Max Kills in Single Turn 3 | . . 1 3 2 . . 1 2 1 . 1 Gunslinging 1 | . . . . 1 . . . . . . . Exploded 3 | . . 1 3 . . . . 2 . . . Melee 1 | . . . . . . . . . . . 1 Uniques/NPCs Destroyed . | . . . . . . . . . . . . Combat | -11 -10 -9 -8 -7 -7 -7 -6 -6 -6 -6 -6 -------- Run | Yrd Mat Mat Mat Fac Low Dat Pro Fac Gar Fac DSF Hostile Shots Fired 672 | . . 77 146 12 1 . 73 53 174 . 136 Missed 184 | . . 28 36 5 . . 12 14 51 . 38 Hits 488 | . . 49 110 7 1 . 61 39 123 . 98 Melee 6 | . . . . . . . . . 5 . 1 Projectile 482 | . . 49 110 7 1 . 61 39 118 . 97 AOE 1 | . . . . . . . . 1 . . . Critical Strikes 13 | . . . 4 . . . . 2 1 . 6 Damage Taken 8665 | . . 700 1712 113 16 . 933 839 2278 . 2074 Core 1338 | . . 139 247 . . . 92 99 365 . 396 Absorbed by Shields . | . . . . . . . . . . . . Redirected to Shielding 32 | . . . . . . . . . 5 . 27 Regen/Repaired (Parts) 74 | . . . . . . . . 74 . . . Core Remaining (%) 81 | 100 100 65 55 . . . 86 . . . . Volleys Fired 212 | . . 53 51 9 . . 26 20 50 . 3 Largest 3 | . . 2 2 3 . . 3 2 3 . 2 Hottest 359 | . . 73 115 169 . . 174 310 359 . 115 Shots Fired 383 | . . 89 76 27 . . 56 37 92 . 6 Gun 360 | . . 87 64 27 . . 56 35 85 . 6 Cannon 6 | . . . . . . . . . 6 . . Launcher 17 | . . 2 12 . . . . 2 1 . . Special . | . . . . . . . . . . . . Kinetic 132 | . . 73 21 . . . . . 35 . 3 Thermal 103 | . . . 14 9 . . 17 13 47 . 3 Explosive 14 | . . 2 12 . . . . . . . . Electromagnetic 134 | . . 14 29 18 . . 39 24 10 . . Robot Hit Streak 19 | . . 16 11 12 . . 6 19 9 . 1 Robot Miss Streak 8 | . . 4 8 4 . . 5 5 3 . 1 Penetration Max . | . . . . . . . . . . . . Secondary Targets 6 | . . 2 1 1 . . 1 . 1 . . Max Gunslinging Chain 1 | . . 1 1 1 . . 1 . 1 . . Shots Hit Robots 259 | . . 61 52 17 . . 22 32 63 . 12 Core Hits 144 | . . 28 53 17 . . 11 9 24 . 2 Critical Kills 1 | . . . . . . . . . 1 . . Critical Parts Destroyed 5 | . . 2 . . . . 1 . 1 . 1 Critical Strikes 12 | . . 2 2 . . . 2 1 4 . 1 Burn 3 | . . . . . . . . 1 2 . . Destroy 3 | . . 2 . . . . . . 1 . . Corrupt 2 | . . . 1 . . . 1 . . . . Smash 3 | . . . . . . . 1 . 1 . 1 Sever 1 | . . . 1 . . . . . . . . Melee Attacks 30 | . . . 8 . . . 5 4 2 . 11 Impact 22 | . . . . . . . 5 4 2 . 11 Slashing 8 | . . . 8 . . . . . . . . Piercing . | . . . . . . . . . . . . Sneak Attacks . | . . . . . . . . . . . . Combat Hostiles . | . . . . . . . . . . . . Follow-up Attacks . | . . . . . . . . . . . . Damage Inflicted 6579 | . . 1021 1687 605 . . 484 813 1432 . 537 Guns 3905 | . . 823 785 356 . . 401 350 1122 . 68 Cannons 68 | . . . . . . . . . 68 . . Explosions 1874 | . . 192 871 249 . . . 378 184 . . Melee 719 | . . . 31 . . . 83 85 58 . 462 Ramming 13 | . . 6 . . . . . . . . 7 Kinetic 1467 | . . 634 262 . . . . . 503 . 68 Thermal 1986 | . . 56 215 340 . . 152 469 754 . . Explosive 1047 | . . 136 823 . . . . 88 . . . Electromagnetic 1347 | . . 189 356 265 . . 249 171 117 . . Impact 688 | . . . . . . . 83 85 58 . 462 Slashing 31 | . . . 31 . . . . . . . . Piercing . | . . . . . . . . . . . . Highest Corruption 2 | . . . . . . . . 2 2 2 2 Average Corruption 1 | . . . . . . . . 1 2 2 2 Corruption Purged . | . . . . . . . . . . . . Corruption Blocked . | . . . . . . . . . . . . Effects 23 | . . . . . . . . 4 15 . 4 Message Errors 6 | . . . . . . . . 2 3 . 1 Matter Fused 7 | . . . . . . . . 1 4 . 2 Heat Flow Errors 4 | . . . . . . . . . 3 . 1 Energy Discharges 2 | . . . . . . . . . 2 . . Data Loss (minor) 1 | . . . . . . . . . 1 . . Misfires 2 | . . . . . . . . . 2 . . Weapon Failures 1 | . . . . . . . . 1 . . . Overload Shots . | . . . . . . . . . . . . Overflow Damage 466 | . . 34 14 . . . 58 146 74 . 140 Projectiles . | . . . . . . . . . . . . Explosions 163 | . . 34 14 . . . . 99 16 . . Melee 303 | . . . . . . . 58 47 58 . 140 Knockbacks 6 | . . . . . . . . 2 1 . 3 Impact 6 | . . . . . . . . 2 1 . 3 Kinetic . | . . . . . . . . . . . . Secondary . | . . . . . . . . . . . . Self-Inflicted Damage 445 | . . 167 84 . . . . 146 48 . . Shots 8 | . . 3 2 . . . . 2 1 . . Rammed 3 | . . 1 . . . . . . . . 2 Targets Rammed 3 | . . 1 . . . . . . . . 2 Kicked . | . . . . . . . . . . . . Crushed . | . . . . . . . . . . . . Highest Temperature 427 | . . 135 331 211 . . 377 200 427 . 195 Average Temperature 117 | . . 43 85 81 . . 168 130 154 . 100 Received Heat Transfer 1746 | . . 192 558 63 9 . . 153 429 . 342 Effects 11 | . . . . . . . 7 2 2 . . Shutdowns 1 | . . . . . . . . . 1 . . Energy Bleed 3 | . . . . . . . 1 2 . . . Interference 5 | . . . . . . . 5 . . . . Short Circuit 1 | . . . . . . . . . 1 . . Damage (minor) 1 | . . . . . . . 1 . . . . Siege Activations . | . . . . . . . . . . . . Martial Activations . | . . . . . . . . . . . . Shielding Activations . | . . . . . . . . . . . . Robots Disrupted . | . . . . . . . . . . . . Combat Hostiles . | . . . . . . . . . . . . Robots Corrupted 6 | . . . . . . . 2 1 1 . 2 Combat Hostiles 6 | . . . . . . . 2 1 1 . 2 Parts Fried 10 | . . 1 . 1 . . 1 2 . . 5 Impact Corruptions 10 | . . . . . . . 3 1 1 . 5 Robots Melted 2 | . . . . . . . . . 2 . . Combat Hostiles 2 | . . . . . . . . . 2 . . Parts Melted 3 | . . . . . . . . . 3 . . Heat Transferred 3446 | . . 50 255 455 . . 296 667 1723 . . Parts Sabotaged . | . . . . . . . . . . . . Parts Stolen . | . . . . . . . . . . . . Parts Stripped . | . . . . . . . . . . . . Power Chain Reactions 5 | . . . 1 2 . . . 1 1 . . Alert | -11 -10 -9 -8 -7 -7 -7 -6 -6 -6 -6 -6 ------- Run | Yrd Mat Mat Mat Fac Low Dat Pro Fac Gar Fac DSF Maximum Alert Level 1 | . . . 1 . . . . 1 1 . . Low Security (%) 58 | 100 100 100 51 100 . . . 16 31 100 100 Level 1 41 | . . . 48 . . . . 83 68 . . Level 2 . | . . . . . . . . . . . . Level 3 . | . . . . . . . . . . . . Level 4 . | . . . . . . . . . . . . Level 5 . | . . . . . . . . . . . . High Security . | . . . . . . . . . . . . Max Security . | . . . . . . . . . . . . Peak Influence 300 | . 7 153 253 130 . . . 300 287 140 166 Initial 300 | . . . 30 97 . . . 300 141 140 91 Average 146 | . . 60 122 81 . . . 236 222 138 98 Influence Increases 2531 | . 7 499 575 162 . . 255 552 306 . 175 Destroy 0b10 Robot/C 1160 | . . 280 280 60 . . 160 100 220 . 60 Destroy 0b10 Robot/NC 65 | . . 20 25 20 . . . . . . . Destroy Leader 246 | . . 64 92 10 . . 20 30 20 . 10 Successful Hack 97 | . 7 22 18 4 . . . 46 . . . Disable Machine 105 | . . 30 45 . . . . 30 . . . Anti-Garrison Action 50 | . . . . . . . . . 50 . . Destroy Structure 163 | . . 38 55 8 . . . 46 16 . . Advance Influence 300 | . . . . . . . . 300 . . . Partial Spotted 15 | . . . . 15 . . . . . . . Lose Combat Pursuer 330 | . . 45 60 45 . . 75 . . . 105 Influence Decreases 2365 | . 7 426 434 335 36 5 255 350 241 137 139 Entered New Map 408 | . . . 43 117 16 5 . . 61 127 39 Time Decay 1259 | . 7 231 283 198 20 . 200 310 . 10 . Lost Part 553 | . . 50 108 20 . . 55 40 180 . 100 Purge Threat 145 | . . 145 . . . . . . . . . Squads Dispatched 12 | . . 2 4 1 . . . 3 . . 2 Investigation 5 | . . 1 2 . . . . 2 . . . Extermination 1 | . . . . . . . . 1 . . . Reinforcement 6 | . . 1 2 1 . . . . . . 2 Assault . | . . . . . . . . . . . . Garrison . | . . . . . . . . . . . . Intercept . | . . . . . . . . . . . . Searches Triggered . | . . . . . . . . . . . . Construction Impeded . | . . . . . . . . . . . . Haulers Reinforced . | . . . . . . . . . . . . Active Scanning Responses . | . . . . . . . . . . . . Cargo Convoy Interrupts . | . . . . . . . . . . . . Stealth | -11 -10 -9 -8 -7 -7 -7 -6 -6 -6 -6 -6 --------- Run | Yrd Mat Mat Mat Fac Low Dat Pro Fac Gar Fac DSF Distress Signals 3 | . . 1 2 . . . . . . . . Communications Jammed . | . . . . . . . . . . . . Distress Signals . | . . . . . . . . . . . . Times Spotted 111 | . . 20 25 6 4 . 16 6 15 . 19 Peak Tracking Total 10 | . . 5 8 3 4 . 4 3 4 . 10 Tactical Retreats 13 | . . 3 2 1 . . 3 . . . 4 Traps | -11 -10 -9 -8 -7 -7 -7 -6 -6 -6 -6 -6 ------- Run | Yrd Mat Mat Mat Fac Low Dat Pro Fac Gar Fac DSF Traps Triggered 2 | . 1 . . . . . . . 1 . . Indirectly . | . . . . . . . . . . . . Trap Hack Attempts . | . . . . . . . . . . . . Triggered . | . . . . . . . . . . . . Disarmed . | . . . . . . . . . . . . Reprogrammed . | . . . . . . . . . . . . Reused . | . . . . . . . . . . . . Traps Extracted . | . . . . . . . . . . . . Installed . | . . . . . . . . . . . . Triggered . | . . . . . . . . . . . . Time Bombs Activated 1 | . . . . . . . . 1 . . . Exploded 1 | . . . . . . . . 1 . . . Machines | -11 -10 -9 -8 -7 -7 -7 -6 -6 -6 -6 -6 ---------- Run | Yrd Mat Mat Mat Fac Low Dat Pro Fac Gar Fac DSF Machines Disabled 8 | . . 2 3 . . . . 2 1 . . Max in Single Turn 2 | . . 2 1 . . . . 1 1 . . Garrison Relay 1 | . . . . . . . . . 1 . . Machines Repaired . | . . . . . . . . . . . . Machines Dismantled . | . . . . . . . . . . . . Machines Sabotaged . | . . . . . . . . . . . . Overloaded Fab Kills . | . . . . . . . . . . . . Hacking | -11 -10 -9 -8 -7 -7 -7 -6 -6 -6 -6 -6 --------- Run | Yrd Mat Mat Mat Fac Low Dat Pro Fac Gar Fac DSF Machines Accessed 31 | . 2 8 7 1 . 4 . 7 1 1 . Terminals 20 | . 2 7 5 1 . . . 3 1 1 . Fabricators . | . . . . . . . . . . . . Repair Stations 1 | . . . . . . . . 1 . . . Recycling Units 3 | . . . 2 . . . . 1 . . . Scanalyzers 2 | . . 1 . . . . . 1 . . . Garrison Access 1 | . . . . . . . . 1 . . . Total Hacks 108 | . 3 25 27 2 . 33 . 14 2 2 . Successful 83 | . 2 17 21 1 . 33 . 8 . 1 . Failed 25 | . 1 8 6 1 . . . 6 2 1 . Catastrophic 4 | . . 3 1 . . . . . . . . Database Lockouts . | . . . . . . . . . . . . Manual 12 | . . 6 3 . . . . 3 . . . Terminals 64 | . 3 23 24 2 . . . 8 2 2 . Fabricators . | . . . . . . . . . . . . Repair Stations 1 | . . . . . . . . 1 . . . Recycling Units 4 | . . . 3 . . . . 1 . . . Scanalyzers 5 | . . 2 . . . . . 3 . . . Garrison Access 1 | . . . . . . . . 1 . . . Terminal Hacks 67 | . 2 10 15 1 . 33 . 5 . 1 . Record 23 | . . 3 8 . . 11 . 1 . . . Part Schematic 12 | . . . . . . 12 . . . . . Robot Schematic 7 | . . . . . . 7 . . . . . Robot Analysis 2 | . . 1 . . . . . 1 . . . Prototype ID Bank 4 | . . 1 . . . 3 . . . . . Open DSF 2 | . . . . 1 . . . . . 1 . Branch Access Points 2 | . 1 . 1 . . . . . . . . Alert Level 1 | . . 1 . . . . . . . . . Unreport Threat 1 | . . 1 . . . . . . . . . Locate Traps 1 | . . . 1 . . . . . . . . Dispatch Records 3 | . . 2 1 . . . . . . . . Surveillance Status 1 | . . . 1 . . . . . . . . Reinforcement Status 1 | . . . . . . . . 1 . . . Assault Status 1 | . . . . . . . . 1 . . . Recall Investigation 2 | . . . 2 . . . . . . . . Recall Reinforcements 1 | . . 1 . . . . . . . . . Zone Layout 3 | . 1 . 1 . . . . 1 . . . Fabricator Hacks . | . . . . . . . . . . . . Repair Station Hacks . | . . . . . . . . . . . . Recycling Unit Hacks 3 | . . . 3 . . . . . . . . Report Inventory 2 | . . . 2 . . . . . . . . Retrieve Components 1 | . . . 1 . . . . . . . . Scanalyzer 3 | . . 2 . . . . . 1 . . . Retrieve Study 3 | . . 2 . . . . . 1 . . . Garrison Access Hacks 1 | . . . . . . . . 1 . . . Unlock Access 1 | . . . . . . . . 1 . . . Unauthorized Hacks 9 | . . 5 3 . . . . 1 . . . Terminals 8 | . . 5 3 . . . . . . . . Track 2 | . . 2 . . . . . . . . . Botnet 6 | . . 3 3 . . . . . . . . Fabricators . | . . . . . . . . . . . . Repair Stations 1 | . . . . . . . . 1 . . . Patch 1 | . . . . . . . . 1 . . . Recycling Units . | . . . . . . . . . . . . Scanalyzers . | . . . . . . . . . . . . Garrison Access . | . . . . . . . . . . . . Data Cores Recovered . | . . . . . . . . . . . . Used . | . . . . . . . . . . . . Hacking Detections 20 | . 1 7 5 1 . . . 5 1 . . Full Trace Events 5 | . . 1 3 . . . . 1 . . . Feedback Events . | . . . . . . . . . . . . Feedback Blocked . | . . . . . . . . . . . . Robot Schematics Acquired 7 | . . . . . . 7 . . . . . Robots Built . | . . . . . . . . . . . . Authchips . | . . . . . . . . . . . . Time . | . . . . . . . . . . . . Total Robot Build Rating . | . . . . . . . . . . . . Part Schematics Acquired 12 | . . . . . . 12 . . . . . Parts Built . | . . . . . . . . . . . . Authchips . | . . . . . . . . . . . . Time . | . . . . . . . . . . . . Total Part Build Rating . | . . . . . . . . . . . . Part Studies Acquired 3 | . . 2 . . . . . 1 . . . Parts Repaired . | . . . . . . . . . . . . Time . | . . . . . . . . . . . . Parts Recycled . | . . . . . . . . . . . . Recycled Matter . | . . . . . . . . . . . . Retrieved Matter . | . . . . . . . . . . . . Retrieved Components 7 | . . . 7 . . . . . . . . Parts Scanalyzed . | . . . . . . . . . . . . Part Schematics Acquired . | . . . . . . . . . . . . Parts Damaged . | . . . . . . . . . . . . Bothacking | -11 -10 -9 -8 -7 -7 -7 -6 -6 -6 -6 -6 ------------ Run | Yrd Mat Mat Mat Fac Low Dat Pro Fac Gar Fac DSF Used RIF Installer 1 | . . . . . . . . . 1 . . Robots Hacked . | . . . . . . . . . . . . Non-combat . | . . . . . . . . . . . . Combat . | . . . . . . . . . . . . Robot Hacks Applied . | . . . . . . . . . . . . Relay Couplers Released 4 | . . . . . . . . . 4 . . Machine Destruction 4 | . . . . . . . . . 4 . . Fabnet Peak Effective % . | . . . . . . . . . . . . Robots Rewired . | . . . . . . . . . . . . Allies Hacked . | . . . . . . . . . . . . Hacks Repelled . | . . . . . . . . . . . . Allies | -11 -10 -9 -8 -7 -7 -7 -6 -6 -6 -6 -6 -------- Run | Yrd Mat Mat Mat Fac Low Dat Pro Fac Gar Fac DSF Total Allies . | . . . . . . . . . . . . Largest Group . | . . . . . . . . . . . . Highest-Rated Group . | . . . . . . . . . . . . Highest-Rated Ally . | . . . . . . . . . . . . Total Orders . | . . . . . . . . . . . . Ally Attacks . | . . . . . . . . . . . . Total Damage . | . . . . . . . . . . . . Kills . | . . . . . . . . . . . . Allies Corrupted . | . . . . . . . . . . . . Allies Melted . | . . . . . . . . . . . . Intel | -11 -10 -9 -8 -7 -7 -7 -6 -6 -6 -6 -6 ------- Run | Yrd Mat Mat Mat Fac Low Dat Pro Fac Gar Fac DSF Active Infowar (turns) 2447 | . . 219 616 407 54 79 279 482 225 . 86 Sensors 488 | . . 219 269 . . . . . . . . IFF 86 | . . . . . . . . . . . 86 Terrain 664 | . . . . . . . . 482 182 . . Traps 537 | . . . . 130 54 79 274 . . . . Machine Analysis 1402 | . . . 583 407 54 79 279 . . . . ECM 53 | . . . . . . . . . 53 . . Robot Analysis Total 2 | . . 1 . . . . . 1 . . . Derelict Logs Recovered 1 | . . . . . . . 1 . . . . Drone Launches . | . . . . . . . . . . . . Drone Recoveries . | . . . . . . . . . . . . Exploration | -11 -10 -9 -8 -7 -7 -7 -6 -6 -6 -6 -6 ------------- Run | Yrd Mat Mat Mat Fac Low Dat Pro Fac Gar Fac DSF Turns Passed 4612 | 60 95 645 739 407 54 79 606 687 966 22 252 Spaces Moved 2797 | 49 105 358 392 242 64 93 470 427 443 17 137 Core 8 | 1 . . . . . . . . 7 . . Treads 355 | . . 70 142 89 . . . 46 . . 8 Legs 1258 | . . 27 62 . . . 206 381 436 17 129 Wheels 1097 | 48 105 182 188 153 64 93 264 . . . . Hover . | . . . . . . . . . . . . Flight 79 | . . 79 . . . . . . . . . Fastest Speed 50 | 50 90 80 90 70 85 85 85 120 120 123 110 Average Speed 117 | 92 90 113 126 113 85 85 101 127 138 123 128 Slowest Speed 750 | 100 90 205 165 165 85 85 123 240 750 123 240 Overloaded Moves . | . . . . . . . . . . . . Propulsion Burnouts . | . . . . . . . . . . . . Robots Hopped . | . . . . . . . . . . . . Potential Cave-ins 2 | . . . 2 . . . . . . . . Cave-ins Triggered . | . . . . . . . . . . . . Exploration Rate (%) 31 | 4 16 36 39 8 12 75 59 11 31 1 81 Regions Visited 11 Branch Regions 3 Pre-discovered Areas 1 | . . . . . . 1 . . . . . Known Exits Taken 2 | . . . . . . . . 1 . 1 . Unknown Exits Taken 8 | 1 1 1 1 1 1 1 1 . . . . Scrap Searched 2 | . . . . . . . 2 . . . . Spaces Dug 5 | . . . 5 . . . . . . . . Terrain Destroyed 202 | . . 43 70 7 . . 1 58 23 . . Melee 5 | . . . 5 . . . . . . . . Projectile 9 | . . . . . . . 1 . 8 . . AOE 188 | . . 43 65 7 . . . 58 15 . . Terrain Rammed . | . . . . . . . . . . . . Walls Destroyed . | . . . . . . . . . . . . Machines Disabled . | . . . . . . . . . . . . Actions | -11 -10 -9 -8 -7 -7 -7 -6 -6 -6 -6 -6 --------- Run | Yrd Mat Mat Mat Fac Low Dat Pro Fac Gar Fac DSF Total 3712 | 60 105 515 551 354 63 92 542 527 701 17 185 Wait 421 | . . 63 53 84 . . 15 36 167 . 3 Move 2786 | 48 104 357 391 241 63 92 469 427 441 16 137 Hop . | . . . . . . . . . . . . Pick Up 58 | 6 . 10 14 3 . . 9 6 8 . 2 Fast Attach 55 | 6 . 6 6 5 . . 2 11 9 . 10 Attach 44 | . 1 8 12 2 . . 9 3 8 . 1 Detach 8 | . . 4 1 . . . . 2 . . 1 Swap 44 | . . 8 7 3 . . 3 5 12 1 5 Drop 50 | . . 5 8 7 . . 4 12 4 . 10 Fire 212 | . . 53 51 9 . . 26 20 50 . 3 Melee 30 | . . . 8 . . . 5 4 2 . 11 Ram 1 | . . 1 . . . . . . . . . Kick . | . . . . . . . . . . . . Crush 2 | . . . . . . . . . . . 2 Escape Stasis . | . . . . . . . . . . . . Rewire . | . . . . . . . . . . . . Trap 1 | . . . . . . . . 1 . . . Miscellaneous . | . . . . . . . . . . . . Route ------- -11/Scrapyard -10/Materials (discovered 2 exits: *Mat / Min) -9/Materials -8/Materials -7/Factory -7/Lower Caves -7/Data Miner -6/Proximity Caves -6/Factory -6/Garrison -6/Factory -6/DSF History --------- Turn | Location | Event 23 | -11/Scrapyard | Discovered new exit (range 16) 61 | -11/Scrapyard | Entered Materials 113 | -10/Materials | Identified exit to Mines 129 | -10/Materials | Discovered new exit (range 15) 156 | -10/Materials | Entered another Materials area 156 | -9/Materials | Evolved 2 slots: Utility x2 328 | -9/Materials | Lost 3 parts (1n2w) 349 | -9/Materials | Build established: Mutant 769 | -9/Materials | Discovered new exit (range 4) 801 | -9/Materials | Entered another Materials area 801 | -8/Materials | Evolved 2 slots: Propulsion x1, Utility x1 1101 | -8/Materials | Lost 3 parts (1p1n1w) 1319 | -8/Materials | Lost 4 parts (1n1u2w) 1516 | -8/Materials | Discovered new exit (range 15) 1540 | -8/Materials | Entered Factory 1540 | -7/Factory | Evolved 2 slots: Utility x1, Weapon x1 1838 | -7/Factory | Build established: Scavenger-Tank 1839 | -7/Factory | Discovered new exit (range 13) 1947 | -7/Factory | Entered Lower Caves 1998 | -7/Lower Caves | A Derelict revealed a hidden shortcut to meet someone special 2001 | -7/Lower Caves | Entered Data Miner 2001 | -7/Data Miner | Discovered new exit (range 6) 2019 | -7/Data Miner | Met Data Miner 2044 | -7/Data Miner | Learned location of Section 7 (-2) 2044 | -7/Data Miner | Acquired the access code to Warlord's prototype stash 2058 | -7/Data Miner | Received God Mode back door access code from Data Miner 2080 | -7/Data Miner | Entered Proximity Caves 2408 | -6/Proximity Caves | Spotter reported a threat 2420 | -6/Proximity Caves | Lost 10 parts (1p3n4u2w) 2571 | -6/Proximity Caves | Discovered new exit (range 12) 2585 | -6/Proximity Caves | Learned 4 Factory zone layouts 2590 | -6/Proximity Caves | Encountered a Derelict sapper outpost 2637 | -6/Proximity Caves | Spotter reported a threat 2668 | -6/Proximity Caves | Build established: Mutant 2686 | -6/Proximity Caves | Entered Factory 2686 | -6/Factory | Evolved 2 slots: Utility x2 3028 | -6/Factory | Build established: Hacker-Mutant 3373 | -6/Factory | Identified exit to Garrison 3373 | -6/Factory | Entered Garrison 3416 | -6/Garrison | Installed Relay Interface Framework 3435 | -6/Garrison | Triggered checkpoint 3680 | -6/Garrison | Garrison Relay disabled 3755 | -6/Garrison | Triggered checkpoint 4020 | -6/Garrison | Triggered checkpoint 4180 | -6/Garrison | Core integrity fell below 50% 4211 | -6/Garrison | Lost 7 parts (1p1n2u3w) 4275 | -6/Garrison | Discovered new exit (range 12) 4339 | -6/Garrison | Entered Factory 4359 | -6/Factory | Identified exit to DSF 4361 | -6/Factory | Entered DSF 4408 | -6/DSF | Additional patrols routed to DSF 4431 | -6/DSF | Lost 3 parts (2u1w) 4473 | -6/DSF | Core integrity fell below 20% 4503 | -6/DSF | Lost 5 parts (1p1n1u2w) 4613 | -6/DSF | Destroyed by S-27 Virus with Autogun Last Messages --------------- 04548_ Knocked back. 04549_ Acquired Antigrav System. 04551_ Acquired 5 matter. 04553_ Great Maul blasted off. 04554_ Acquired 7 matter. 04558_ Penetrated by Slug. 04564_ Acquired Hvy. Armor Plating. 04568_ Slug penetrates Wall. 04568_ Acquired Hvy. Armor Plating. 04581_ C-30 ARC bursts open, deploying its payload. 04581_ S-27 Virus unfolds itself. 04591_ Dropped Antigrav System. 04591_ Acquired Imp. Medium Treads. 04595_ Dropped Arm. Leg. 04596_ Acquired Imp. Medium Treads. 04597_ Dropped Arm. Leg. 04599_ Acquired Imp. Medium Treads. 04601_ Slammed into S-27 Virus. 04611_ Critical hit (Burn: +37). [Achievement: Achiever] Map ----- +----------------------------------------------------+ | #==# ### ###????????????????????? | | #==# ##" %"##????????????????????? | | ########! [[#????????????????????? | | #??????#!! [[#????????????????????? | | #??????#!! ^ [[#????????????????????? | | #??????##" ^###????????????????????? | | #????????= !!#????????????????????? | | #????????= !!#????????????????????? | | #????????= !!#????????????????????? | | ########?# ###?###????????????????? | | !!!#!!!### ##?[[[#?? #? ????????? | | !!!#!!!## ##[[[# ## ????????? | | %= =????????? | | =????????? | | % / =????????? | | !!!#== ## ##!!!#????? ????????? | | !!!"===### ##?????????? ????????? | | ########## H ###????????# ##???????? | | ???????#!! ==#????????= =#???????? | | ???????#!! ==#????????= =????????? | | #??????#!! % ==#????????= =????????? | | #??????### ""#???????## ##???????? | | ???????# % !#????????= =#???????? | | ???????# ! #????????= =#???????? | | ???????# !!########?# #????????? | | ???????### ### #= ###@ ###??????? | | ???#///### ### #==##s ""##?????? | | " = xbs """""????? | | "%" g s ""##"????? | | #//#///# # # ##"""""#??????? | | ???###?# #########"""""#??????? | | ???????#########???????##"####??????? | | ????????????????????????#"#?????????? | | ?????????????????????????""?????????? | | ????????????????????????????????????? | | ????????????????????????????????????? | | ????????????????????????????????????? | | ????????????????????????????????????? | | ????????????????????????????????????? | | | | | | | | | | | | | | | | | | | | | | | +----------------------------------------------------+ Best States ------------- Heat Dissipation 83 Energy Generation 19 Energy Capacity 300 Matter Stores 300 Matter Capacity 300 Sight Range 16 Robot Scan Range 15 Terrain Scan Range 16 Terrain Scan Density 310 ECM Strength 2 Additional Mass Support 9 Armor Coverage 1200 Core Shielding 20 Melee Speed Boost 20 Phase Shifting 5 Evasion (%) 55 Melee Accuracy 6 Core Analysis 6 Recoil Reduction 3 Kinecelleration 30 Offensive Hacking 20 Item Schematics ----------------- Combat Drone Bay | -7/Data Miner | Free Lgt. Regenerative Plating | -7/Data Miner | Free Cld. Aerolev Unit | -7/Data Miner | Free Exp. Power Shielding | -7/Data Miner | Free Imp. Heavy Machine Gun | -7/Data Miner | Free Med. Armored Exoskeleton | -7/Data Miner | Free Adv. Plasma Cannon | -7/Data Miner | Free Lrn. Tractor Beam | -7/Data Miner | Free Adv. Hacking Suite | -7/Data Miner | Free Drone Bay | -7/Data Miner | Free Shield Leg | -7/Data Miner | Free Railgun | -7/Data Miner | Free Robot Schematics ------------------ G-47 Trooper | -7/Data Miner | Free O-24 Administrator | -7/Data Miner | Free M-14 Sweeper | -7/Data Miner | Free W-25 Informer | -7/Data Miner | Free A-15 Conveyor | -7/Data Miner | Free S-27 Virus | -7/Data Miner | Free Y-64 Sentinel | -7/Data Miner | Free Fabricated ------------ Nothing Repaired ---------- Nothing Studied --------- Com. Wheel | -9/Materials | Hacked Wheel | -9/Materials | Hacked Lgt. Fission Core | -6/Factory | Hacked Alien Tech Used ----------------- None Achievements -------------- Achiever The Oracle Challenges ------------ None Game ------ Seed ShiftGravitonDoublenader Manual? 0 Play Time 01:10:02 Cumulative 52.8 hours Start 2026.08.11 @ 01:55:03 End 2026.08.11 @ 03:13:04 Sessions 1 Manual Loads 0 Difficulty Rogue Special Mode None Game No. 51 Rogue 49 Adventurer 2 Explorer 0 Win Type - Total 0 Types 0/0/0/0/0/0/0/0/0/0 Lore% 29 Gallery% 29 Achievement% 25 Wizard Run 0 Options --------- Layout 0 ASCII 0 Keyboard 0 Movement Mouse Keybinds 0 Fullscreen 2 Font 24/Smallcaps Map View 76x50 Zoom Use 0% Tactical HUD 1 Map Filters NONE Filters NONE Steam 1 RUN: 86aeddd7-6053-43aa-84be-a8da35a10305